Cogmind - Beta 15 @@@ ROGUE MODE // 2025.07.18 @ 21:55:31 Player: erfael Result: Core destroyed Performance ------------- Evolutions (2) 1000 Regions Visited (6) 1200 Robots Destroyed (49) 245 Value Destroyed (1121) 1121 Prototype IDs (23) 460 Alien Tech Used (0) 0 Bonus (920) 920 TOTAL SCORE: 4946 Bonus ------- High Alert Combat Kills 193 Follower Combat Kills 427 Aligned with FarCom 300 Cogmind --------- Core Integrity 0/550 Matter 155/300 Energy 58/100 System Corruption 40% Temperature Critical (801) Movement Core (500) Ox9 Location -8/Storage Parts ------- > --- POWER (1) -------- (None) > --- PROPULSION (4) --- Carbon-fiber Leg > --- UTILITY (4) ------ Large Storage Unit > --- WEAPON (2) ------- Spread Laser Beamcaster > --- INVENTORY (15) --- Improved Ion Engine Aluminum Leg Aluminum Leg Aluminum Leg Large Storage Unit Terrain Scan Processor Seismic Detector Targeting Computer Particle Gun Pulse Rifle Heavy Assault Rifle Heavy Assault Rifle Longsword +1 Peak State ------------ > --- POWER ------------ Improved Deuterium Engine > --- PROPULSION ------- Aluminum Leg Aluminum Leg Aluminum Leg Carbon-fiber Leg > --- UTILITY ---------- Large Storage Unit Improved Terrain Scanner Seismic Detector Medium Armor Plating > --- WEAPON ----------- Spread Laser Longsword +1 > --- INVENTORY -------- Improved Ion Engine Large Storage Unit Terrain Scan Processor Seismic Detector Targeting Computer Medium Armor Plating Spread Laser Beamcaster Assault Rifle Gauss Cannon Heavy Missile Launcher [Rating: 29] Favorites ----------- Power Improved Ion Engine Engine Improved Ion Engine Power Core Light Nuclear Core Propulsion Aluminum Leg Treads Light Treads Leg Aluminum Leg Utility Large Storage Unit Device Seismic Detector Storage Large Storage Unit Processor Terrain Scan Processor Protection Medium Armor Plating Weapon Spread Laser Energy Gun Spread Laser Ballistic Gun Assault Rifle Ballistic Cannon Gauss Cannon Launcher Grenade Launcher Slashing Weapon Longsword +1 Build | -11 -10 -10 -10 -9 -8 -8 ------- Run | Yrd Mat Min Exi Min Mat Sto Slots Evolved 4 | . . . . . 4 . Power . | . . . . . . . Propulsion 2 | . . . . . 2 . Utility 2 | . . . . . 2 . Weapon . | . . . . . . . Parts Attached 42 | 9 4 2 . 2 3 22 Power 6 | 1 1 1 . 1 . 2 Engine 5 | 1 1 1 . 1 . 1 Core 1 | . . . . . . 1 Reactor . | . . . . . . . Propulsion 12 | 3 . 1 . . 1 7 Treads 1 | 1 . . . . . . Leg 11 | 2 . 1 . . 1 7 Wheel . | . . . . . . . Hover . | . . . . . . . Flight . | . . . . . . . Utility 9 | 2 1 . . . 2 4 Device 2 | 1 . . . . 1 . Storage 2 | 1 1 . . . . . Processor 1 | . . . . . . 1 Hackware . | . . . . . . . Protection 4 | . . . . . 1 3 Artifact . | . . . . . . . Weapon 15 | 3 2 . . 1 . 9 Energy Gun 8 | 2 1 . . . . 5 Energy Cannon . | . . . . . . . Ballistic Gun 3 | 1 . . . . . 2 Ballistic Cannon 1 | . . . . . . 1 Launcher 2 | . 1 . . 1 . . Special Weapon . | . . . . . . . Impact Weapon . | . . . . . . . Slashing Weapon 1 | . . . . . . 1 Piercing Weapon . | . . . . . . . Special Melee Weapon . | . . . . . . . Unidentified Prototypes . | . . . . . . . Parts Lost 21 | . . . . . . 21 Power 3 | . . . . . . 3 Propulsion 7 | . . . . . . 7 Utility 7 | . . . . . . 7 Weapon 4 | . . . . . . 4 Highest Loss Streak 9 | . . . . . . 9 To Critical Strikes 3 | . . . . . . 3 Average Backups 13 | 3 13 15 15 14 12 12 Power . | . . 1 1 1 1 1 Propulsion 2 | 1 3 3 2 2 . . Utility 5 | . 5 6 6 6 5 5 Weapon 4 | . 3 4 5 5 5 5 Tool/Special . | . . . . . . . Unused Backups 14 | . . 3 1 3 . 7 Power . | . . . . . . . Propulsion 3 | . . 1 1 . . 1 Utility 7 | . . 1 . . . 6 Weapon 4 | . . 1 . 3 . . Tool/Special . | . . . . . . . Average Slot Usage (%) 98 | . 100 100 100 100 90 95 Engine 12 | . 14 14 14 14 9 7 Leg 29 | . 28 28 28 28 33 34 Device 14 | . 14 14 14 14 15 14 Storage 12 | . 14 14 14 14 9 9 Protection 1 | . . . . . 6 7 Energy Gun 12 | . 14 14 14 14 9 8 Ballistic Gun 10 | . 11 14 14 13 9 2 Peak Build Rating 29 | 7 10 13 14 19 23 29 Average Rating 15 | 5 9 12 13 15 22 25 On Entrance 11 | . 7 10 13 14 16 23 Naked Turns . | . . . . . . . Heaviest Build 49 | 14 32 33 33 41 44 49 Greatest Support 50 | 20 20 25 25 25 45 50 Greatest Overweight (x) 3 | 1 1 1 1 1 . 3 Average Overweight (x) . | . . 1 1 1 . . Largest Inventory Capacity 15 | 8 15 15 15 15 15 15 Average Capacity 14 | 7 14 15 15 15 15 15 Most Carried 15 | 6 15 15 15 15 14 15 Average Carried 13 | 3 13 14 14 14 11 12 Final Capacity 15 | 8 15 15 15 15 15 15 Final Carried 15 | 6 15 15 15 15 11 13 Class Distribution -------------------- 77% | Mutant 10% | Scavenger-Assassin 8% | Scavenger-Skirmisher Dominant Class ---------------- Mutant | -10/Materials Mutant | -10/Mines Mutant | -10/Exiles Mutant | -9/Mines Mutant | -8/Materials Scavenger-Assassin | -8/Storage Resources | -11 -10 -10 -10 -9 -8 -8 ----------- Run | Yrd Mat Min Exi Min Mat Sto Matter Collected 1040 | 277 108 91 . 13 . 551 Remotely . | . . . . . . . Salvage Created 1033 | 88 104 . . 2 . 839 Parts 70 | 9 11 . . 4 . 46 Haulers Intercepted 3 | . . . . . . 3 Recyclers Shooed 5 | . . 1 . . . 4 Parts Field Recycled . | . . . . . . . Retrieved Matter . | . . . . . . . Parts Self-Destructed . | . . . . . . . Prevented . | . . . . . . . Kills | -11 -10 -10 -10 -9 -8 -8 ------- Run | Yrd Mat Min Exi Min Mat Sto Combat Hostiles Destroyed 30 | . 8 . . 3 . 19 Guns 9 | . 2 . . . . 7 Cannons 3 | . . . . . . 3 AOE 18 | . 6 . . 3 . 9 Classes Destroyed 10 | 1 3 . . . . 6 Worker 1 | . . . . . . 1 Builder 5 | . 1 . . . . 4 Tunneler 4 | 4 . . . . . . Hauler 3 | . . . . . . 3 Recycler 3 | . . . . . . 3 Mechanic 2 | . . . . . . 2 Watcher 1 | . . . . . . 1 Swarmer 13 | . 6 . . 3 . 4 Grunt 10 | . 2 . . . . 8 Sentry 7 | . . . . . . 7 Best Kill Streak 10 | 2 3 . . 3 . 10 Combat Bots Only 5 | . 3 . . 3 . 5 Max Kills in Single Turn 3 | 1 2 . . 3 . 3 Gunslinging . | . . . . . . . Exploded 3 | . 2 . . 3 . 2 Melee . | . . . . . . . Uniques/NPCs Destroyed . | . . . . . . . Combat | -11 -10 -10 -10 -9 -8 -8 -------- Run | Yrd Mat Min Exi Min Mat Sto Hostile Shots Fired 185 | . 40 . . 3 2 140 Missed 47 | . 12 . . 2 2 31 Hits 138 | . 28 . . 1 . 109 Melee 8 | . . . . . . 8 Projectile 130 | . 28 . . 1 . 101 Critical Strikes 10 | . . . . . . 10 Damage Taken 2724 | . 318 . . 6 . 2400 Core 669 | . 95 . . . . 574 Absorbed by Shields . | . . . . . . . Core Remaining (%) 81 | 100 . . . 62 . . Volleys Fired 72 | 7 10 1 . 2 . 52 Largest 2 | 2 2 2 . 2 . 2 Hottest 128 | 60 95 85 . 104 . 128 Shots Fired 133 | 14 20 2 . 4 . 93 Gun 86 | 14 14 2 . 3 . 53 Cannon 26 | . . . . . . 26 Launcher 21 | . 6 . . 1 . 14 Special . | . . . . . . . Kinetic 52 | 7 4 1 . 1 . 39 Thermal 60 | 7 10 1 . 2 . 40 Explosive 21 | . 6 . . 1 . 14 Electromagnetic . | . . . . . . . Robot Hit Streak 8 | 2 5 2 . 1 . 8 Robot Miss Streak 9 | 2 6 3 . 2 . 9 Penetration Max . | . . . . . . . Secondary Targets 1 | . 1 . . . . . Max Gunslinging Chain 1 | . 1 . . . . . Shots Hit Robots 78 | 7 11 2 . 2 . 56 Core Hits 98 | 4 20 . . 4 . 70 Critical Kills . | . . . . . . . Critical Parts Destroyed 1 | 1 . . . . . . Critical Strikes 4 | 1 . . . . . 3 Destroy 1 | 1 . . . . . . Blast 3 | . . . . . . 3 Melee Attacks 19 | . . . . . . 19 Impact . | . . . . . . . Slashing 19 | . . . . . . 19 Piercing . | . . . . . . . Sneak Attacks . | . . . . . . . Combat Hostiles . | . . . . . . . Follow-up Attacks . | . . . . . . . Damage Inflicted 4041 | 100 591 18 . 169 . 3163 Guns 725 | 100 126 18 . 21 . 460 Cannons 451 | . . . . . . 451 Explosions 2865 | . 465 . . 148 . 2252 Melee . | . . . . . . . Ramming . | . . . . . . . Kinetic 671 | 68 41 10 . 15 . 537 Thermal 534 | 32 85 8 . 35 . 374 Explosive 2836 | . 465 . . 119 . 2252 Electromagnetic . | . . . . . . . Impact . | . . . . . . . Slashing . | . . . . . . . Piercing . | . . . . . . . Highest Corruption 40 | . . . . . . 40 Average Corruption 15 | . . . . . . 15 Corruption Purged . | . . . . . . . Corruption Blocked . | . . . . . . . Effects 8 | . . . . . . 8 Message Errors 2 | . . . . . . 2 Matter Fused 1 | . . . . . . 1 Heat Flow Errors 3 | . . . . . . 3 Misfires 1 | . . . . . . 1 Misdirections 1 | . . . . . . 1 Overload Shots . | . . . . . . . Overflow Damage 73 | . . . . . . 73 Projectiles . | . . . . . . . Explosions 73 | . . . . . . 73 Melee . | . . . . . . . Knockbacks 1 | . . . . . . 1 Impact . | . . . . . . . Kinetic 1 | . . . . . . 1 Secondary . | . . . . . . . Self-Inflicted Damage 353 | . 61 . . . . 292 Shots 9 | . 3 . . . . 6 Rammed . | . . . . . . . Targets Rammed . | . . . . . . . Kicked . | . . . . . . . Crushed . | . . . . . . . Highest Temperature 1116 | . 126 27 . 48 . 1116 Average Temperature 227 | . 44 16 . 22 . 282 Received Heat Transfer 819 | . 36 . . . . 783 Effects 24 | . . . . . . 24 Shutdowns 2 | . . . . . . 2 Energy Bleed 2 | . . . . . . 2 Interference 4 | . . . . . . 4 Matter Decay 1 | . . . . . . 1 Short Circuit 4 | . . . . . . 4 Damage (minor) 2 | . . . . . . 2 Damage (major) 6 | . . . . . . 6 Damage (core) 3 | . . . . . . 3 Siege Activations . | . . . . . . . Martial Activations . | . . . . . . . Shielding Activations . | . . . . . . . Robots Disrupted . | . . . . . . . Combat Hostiles . | . . . . . . . Robots Corrupted . | . . . . . . . Combat Hostiles . | . . . . . . . Parts Fried . | . . . . . . . Impact Corruptions . | . . . . . . . Robots Melted . | . . . . . . . Combat Hostiles . | . . . . . . . Parts Melted . | . . . . . . . Heat Transferred 924 | 75 110 10 . 60 . 669 Parts Sabotaged . | . . . . . . . Parts Stolen . | . . . . . . . Parts Stripped . | . . . . . . . Power Chain Reactions . | . . . . . . . Alert | -11 -10 -10 -10 -9 -8 -8 ------- Run | Yrd Mat Min Exi Min Mat Sto Maximum Alert Level 3 | . . . . . . 3 Low Security (%) 90 | 100 100 100 . 100 100 62 Level 1 2 | . . . . . . 11 Level 2 2 | . . . . . . 8 Level 3 4 | . . . . . . 18 Level 4 . | . . . . . . . Level 5 . | . . . . . . . High Security . | . . . . . . . Max Security . | . . . . . . . Peak Influence 864 | 5 142 21 . 121 . 864 Initial 21 | . . 21 . . . . Average 76 | . 51 . . 19 . 249 Influence Increases 1920 | 20 252 . . 121 . 1527 Destroy 0b10 Robot/C 900 | . 160 . . 60 . 680 Destroy 0b10 Robot/NC 95 | 20 5 . . . . 70 Destroy Leader 238 | . 30 . . 10 . 198 Allied During Kill 224 | . . . . . . 224 Successful Hack 4 | . . . . . . 4 Disable Machine 150 | . 15 . . 30 . 105 Destroy Structure 234 | . 42 . . 21 . 171 Lose Combat Pursuer 75 | . . . . . . 75 Influence Decreases 1142 | 20 196 56 . 121 . 749 Entered New Map 35 | . . 35 . . . . Time Decay 697 | 20 196 21 . 121 . 339 Lost Part 210 | . . . . . . 210 Lost Ally 200 | . . . . . . 200 Squads Dispatched 11 | . 1 . . 1 . 9 Investigation 1 | . . . . 1 . . Extermination . | . . . . . . . Reinforcement 5 | . 1 . . . . 4 Assault 1 | . . . . . . 1 Garrison 4 | . . . . . . 4 Intercept . | . . . . . . . Searches Triggered . | . . . . . . . Construction Impeded 2 | . . . . . . 2 Haulers Reinforced . | . . . . . . . Active Scanning Responses . | . . . . . . . Cargo Convoy Interrupts . | . . . . . . . Stealth | -11 -10 -10 -10 -9 -8 -8 --------- Run | Yrd Mat Min Exi Min Mat Sto Distress Signals 4 | . 1 . . . . 3 Communications Jammed . | . . . . . . . Distress Signals . | . . . . . . . Times Spotted 65 | . 17 2 . 2 3 41 Peak Tracking Total 6 | . 4 1 . 3 4 6 Tactical Retreats 4 | . . . . . . 4 Traps | -11 -10 -10 -10 -9 -8 -8 ------- Run | Yrd Mat Min Exi Min Mat Sto Traps Triggered . | . . . . . . . Indirectly . | . . . . . . . Trap Hack Attempts . | . . . . . . . Triggered . | . . . . . . . Disarmed . | . . . . . . . Reprogrammed . | . . . . . . . Reused . | . . . . . . . Traps Extracted . | . . . . . . . Installed . | . . . . . . . Triggered . | . . . . . . . Machines | -11 -10 -10 -10 -9 -8 -8 ---------- Run | Yrd Mat Min Exi Min Mat Sto Machines Disabled 10 | . 1 . . 2 . 7 Max in Single Turn 2 | . 1 . . 2 . 2 Machines Repaired . | . . . . . . . Machines Dismantled . | . . . . . . . Machines Sabotaged . | . . . . . . . Overloaded Fab Kills . | . . . . . . . Hacking | -11 -10 -10 -10 -9 -8 -8 --------- Run | Yrd Mat Min Exi Min Mat Sto Machines Accessed 13 | . 1 2 1 1 . 8 Terminals 10 | . . 2 . . . 8 Fabricators . | . . . . . . . Repair Stations . | . . . . . . . Recycling Units 1 | . 1 . . . . . Scanalyzers . | . . . . . . . Garrison Access . | . . . . . . . Total Hacks 25 | . 2 5 1 1 . 16 Successful 8 | . . 2 1 1 . 4 Failed 17 | . 2 3 . . . 12 Catastrophic 4 | . . 1 . . . 3 Database Lockouts . | . . . . . . . Manual 9 | . . 4 1 . . 4 Terminals 21 | . . 5 . . . 16 Fabricators . | . . . . . . . Repair Stations . | . . . . . . . Recycling Units 2 | . 2 . . . . . Scanalyzers . | . . . . . . . Garrison Access . | . . . . . . . Terminal Hacks 7 | . . 1 1 1 . 4 Record 1 | . . 1 . . . . Open Door 5 | . . . . 1 . 4 Proto ID Catalog 1 | . . . 1 . . . Fabricator Hacks . | . . . . . . . Repair Station Hacks . | . . . . . . . Recycling Unit Hacks . | . . . . . . . Scanalyzer . | . . . . . . . Garrison Access Hacks . | . . . . . . . Unauthorized Hacks 1 | . . 1 . . . . Terminals 1 | . . 1 . . . . Botnet 1 | . . 1 . . . . Fabricators . | . . . . . . . Repair Stations . | . . . . . . . Recycling Units . | . . . . . . . Scanalyzers . | . . . . . . . Garrison Access . | . . . . . . . Data Cores Recovered . | . . . . . . . Used . | . . . . . . . Hacking Detections 6 | . . 2 . . . 4 Full Trace Events 1 | . . 1 . . . . Feedback Events . | . . . . . . . Feedback Blocked . | . . . . . . . Robot Schematics Acquired . | . . . . . . . Robots Built . | . . . . . . . Authchips . | . . . . . . . Time . | . . . . . . . Total Robot Build Rating . | . . . . . . . Part Schematics Acquired . | . . . . . . . Parts Built . | . . . . . . . Authchips . | . . . . . . . Time . | . . . . . . . Total Part Build Rating . | . . . . . . . Parts Repaired . | . . . . . . . Time . | . . . . . . . Parts Recycled . | . . . . . . . Recycled Matter . | . . . . . . . Retrieved Matter . | . . . . . . . Retrieved Components . | . . . . . . . Parts Scanalyzed . | . . . . . . . Part Schematics Acquired . | . . . . . . . Parts Damaged . | . . . . . . . Bothacking | -11 -10 -10 -10 -9 -8 -8 ------------ Run | Yrd Mat Min Exi Min Mat Sto Used RIF Installer . | . . . . . . . Robots Hacked . | . . . . . . . Non-combat . | . . . . . . . Combat . | . . . . . . . Robot Hacks Applied . | . . . . . . . Relay Couplers Released . | . . . . . . . Fabnet Peak Effective % . | . . . . . . . Robots Rewired . | . . . . . . . Allies Hacked . | . . . . . . . Hacks Repelled . | . . . . . . . Allies | -11 -10 -10 -10 -9 -8 -8 -------- Run | Yrd Mat Min Exi Min Mat Sto Total Allies 10 | . . . . . . 10 Largest Group 10 | . . . . . . 10 Highest-Rated Group 173 | . . . . . . 173 Highest-Rated Ally 29 | . . . . . . 29 Total Orders . | . . . . . . . Ally Attacks 92 | . . . . . . 92 Total Damage 1125 | . . . . . . 1125 Kills 15 | . . . . . . 15 Allies Corrupted . | . . . . . . . Allies Melted . | . . . . . . . Intel | -11 -10 -10 -10 -9 -8 -8 ------- Run | Yrd Mat Min Exi Min Mat Sto Active Infowar (turns) 5448 | 61 818 1802 551 945 18 1253 Terrain 1268 | . . . . . 15 1253 Seismic 5009 | 61 818 1802 551 945 18 814 Robot Analysis Total . | . . . . . . . Derelict Logs Recovered 3 | . . 1 . 2 . . Drone Launches . | . . . . . . . Drone Recoveries . | . . . . . . . Exploration | -11 -10 -10 -10 -9 -8 -8 ------------- Run | Yrd Mat Min Exi Min Mat Sto Turns Passed 5625 | 178 818 1802 551 945 18 1313 Spaces Moved 2887 | 114 365 903 289 488 12 716 Core 5 | 5 . . . . . . Treads 12 | 12 . . . . . . Legs 2870 | 97 365 903 289 488 12 716 Wheels . | . . . . . . . Hover . | . . . . . . . Flight . | . . . . . . . Fastest Speed 50 | 50 120 190 190 190 120 120 Average Speed 171 | 122 189 190 190 190 120 127 Slowest Speed 330 | 190 190 190 190 190 120 330 Overloaded Moves . | . . . . . . . Propulsion Burnouts . | . . . . . . . Robots Hopped . | . . . . . . . Potential Cave-ins 4 | . . . . . . 4 Cave-ins Triggered 1 | . . . . . . 1 Exploration Rate (%) 51 | 5 44 97 63 77 2 75 Regions Visited 6 Branch Regions 4 Pre-discovered Areas . | . . . . . . . Known Exits Taken . | . . . . . . . Unknown Exits Taken 6 | 1 1 1 1 1 1 . Scrap Searched 2 | . . 1 . 1 . . Spaces Dug 14 | . . . . . . 14 Terrain Destroyed 254 | . 39 . . 26 . 189 Melee 14 | . . . . . . 14 Projectile 11 | . . . . . . 11 AOE 229 | . 39 . . 26 . 164 Terrain Rammed . | . . . . . . . Walls Destroyed . | . . . . . . . Machines Disabled . | . . . . . . . Actions | -11 -10 -10 -10 -9 -8 -8 --------- Run | Yrd Mat Min Exi Min Mat Sto Total 3404 | 135 472 992 292 503 15 995 Wait 322 | . 76 73 2 4 . 167 Move 2881 | 113 364 902 288 487 11 716 Hop . | . . . . . . . Pick Up 31 | 4 11 6 1 3 . 6 Fast Attach 21 | 9 . . . . . 12 Attach 7 | . 1 . . . 4 2 Detach 3 | 2 1 . . . . . Swap 27 | . 6 2 . 3 . 16 Drop 21 | . 3 8 1 4 . 5 Fire 72 | 7 10 1 . 2 . 52 Melee 19 | . . . . . . 19 Ram . | . . . . . . . Kick . | . . . . . . . Crush . | . . . . . . . Escape Stasis . | . . . . . . . Rewire . | . . . . . . . Trap . | . . . . . . . Miscellaneous . | . . . . . . . Route ------- -11/Scrapyard -10/Materials (discovered 2 exits: [*Mat] / *Min) -10/Mines (discovered 4 exits: [*Mat x2] / *Exi / [*Sub]) -10/Exiles (discovered 2 exits: *Min x2) -9/Mines -8/Materials -8/Storage (discovered 1 exit: [Rec]) History --------- Turn | Location | Event 11 | -11/Scrapyard | Discovered new exit (range 15) 179 | -11/Scrapyard | Entered Materials 302 | -10/Materials | Build established: Mutant 635 | -10/Materials | Discovered new exit (range 7) 784 | -10/Materials | Discovered new exit (range 7) 997 | -10/Materials | Entered Mines 1001 | -10/Mines | Joined a pair of Derelicts in attacking an 0b10 outpost 1194 | -10/Mines | Discovered new exit (range 12) 1322 | -10/Mines | Assembled infested the area 1627 | -10/Mines | Discovered new exit (range 6) 1654 | -10/Mines | Discovered new exit (range 5) 1963 | -10/Mines | Learned Materials interactive machine intel 2444 | -10/Mines | Discovered new exit (range 8) 2799 | -10/Mines | Entered Exiles 2845 | -10/Exiles | Discovered new exit (range 15) 2879 | -10/Exiles | Met 8R-AWN 2902 | -10/Exiles | Met EX-HEX 2986 | -10/Exiles | Met EX-BIN 3010 | -10/Exiles | Aligned with FarCom system 3012 | -10/Exiles | Given EX-Vault access code 3094 | -10/Exiles | Opened EX-Vault 3114 | -10/Exiles | Found Longsword +1 3151 | -10/Exiles | Warned to stay clear of 0b10 Research branches 3223 | -10/Exiles | Met EX-DEC 3314 | -10/Exiles | Discovered new exit (range 14) 3350 | -10/Exiles | Left Exiles lab with Longsword +1 3350 | -10/Exiles | Entered Mines 3411 | -9/Mines | Learned Materials non-interactive machine intel 3430 | -9/Mines | Met a Derelict bent on vengeance 3620 | -9/Mines | Met a Derelict shopkeep closing up shop 4012 | -9/Mines | Found a hidden stash of uninstalled traps 4042 | -9/Mines | Discovered new exit (range 12) 4120 | -9/Mines | Learned Materials terminal intel 4295 | -9/Mines | Entered Materials 4295 | -8/Materials | Evolved 4 slots: Propulsion x2, Utility x2 4296 | -8/Materials | Loaded intel: 36 non-interactive machine locations 4297 | -8/Materials | Loaded intel: 19 interactive machine locations 4298 | -8/Materials | Loaded intel: 12 terminal locations 4302 | -8/Materials | Discovered new exit (range 10) 4313 | -8/Materials | Entered Storage 4947 | -8/Storage | Build established: Scavenger-Assassin 5076 | -8/Storage | Garrison activated, responded to threat 5160 | -8/Storage | Lost 3 parts (1p1n1u) 5184 | -8/Storage | Assisted by bots powering up and referring to "LRC-V3" 5187 | -8/Storage | Discovered new exit (range 13) 5283 | -8/Storage | Garrison activated, responded to threat 5422 | -8/Storage | Crushed by falling debris 5422 | -8/Storage | System corruption reached 10% 5433 | -8/Storage | Lost 10 allies 5453 | -8/Storage | Lost 8 parts (1p3n1u3w) 5513 | -8/Storage | First assault squad dispatched 5582 | -8/Storage | Core integrity fell below 50% 5612 | -8/Storage | System corruption reached 30% 5619 | -8/Storage | Core integrity fell below 20% 5627 | -8/Storage | Core destroyed Last Messages --------------- 05611_ Terrain Scan Processor destroyed. 05611_ System corrupted by crushing effect (+4). 05612_ Critical hit (Burn: +37). 05613_ Overheating: Broken Spread Laser damaged (-9). 05613_ Overheating: Pulse Rifle damaged (-32). 05613_ Overheating: Med. Armor Plating damaged (-14). 05613_ Overheating: Lrg. Storage Unit damaged (-116). 05613_ R-06 Scavenger collects Lgt. Treads. 05615_ Overheating: Core damaged (-93). 05616_ Overheating: Energy bleed (-8). 05616_ Med. Armor Plating destroyed. 05618_ Aluminum Leg broken. 05618_ Overheating: Short circuit. 05623_ Overheating: Broken Aluminum Leg damaged (-16). 05625_ Critical hit (Smash). 05625_ Gauss Cannon destroyed. 05625_ Broken Aluminum Leg destroyed. 05625_ System corrupted by crushing effect (+4). 05625_ System corrupted by crushing effect (+3). 05627_ Overheating: Core damaged (-82). Map ----- +----------------------------------------------------+ | #####+###########% #??????????????????? | | + #####?#### # """ #? ????????????????? | | # ##+###?###### # """ #? ???????????????? | | # # #?####T# ## """ # ????????????????? | | # ### ?" + #? #???????? ?????????? | | # ### " # #?####### ?? ? ????????????? | | # ### ?" # ###?##????? ??? ?????????????? | | + ##?##### #######?##???#???##?#????????? | | # # #?#??# ##########???? ??????????????? | | # # ###??# ## ### "????????????????? | | + # ##?#?# ## ""# "?"??"???????????? | | # # ###### ## [ ] Y"# ""??"?? ?????????? | | #+#### ###### # [ ""#??? ??????????????? | | # ######?# ## [] ### ?? ?????????????? | | ##### # #?###?## ## =#??? ?? ? ???????????? | | ## ## #######??## ##+##+####? ? ???????????????? | | ##### #?#???##### ##??####??##???????????? | | ?#??# #######??## #?###???##?? #?????????? | | ?#### ########### ##?#####??##??#????????? | | ??#T# ###??#??#???? ?????????? | | ??" + #####=#?#??#?###? ??????????? | | ??### #?###=###### #? "??????????? | | ????# #?#?#%== +??""?????????? | | ????#+######+######?###g###### # ????????????? | | ? ????? ## ?#?#??##=[%[% ##???#? ? ?????????? | | ???? ?????Y?? # ??## %==@ #???#???#??????????? | | ????????"?#???" ????# b #??????##??????????? | | ????????? ??#T?? ? #; ###?#?###??????????? | | ??????#?#?#????##??#####;####???#??????????????? | | | | | | | | | | | | | | | | | | | | | | | | | | | | | | | | | | | | | | | | | | | +----------------------------------------------------+ Best States ------------- Heat Dissipation 31 Energy Generation 16 Energy Capacity 290 Matter Stores 300 Matter Capacity 300 Sight Range 16 Terrain Scan Range 16 Terrain Scan Density 85 Armor Coverage 375 Evasion (%) 55 Recoil Reduction 1 Item Schematics ----------------- None Robot Schematics ------------------ None Fabricated ------------ Nothing Repaired ---------- Nothing Alien Tech Used ----------------- None Achievements -------------- Significant Disruption Challenges ------------ None Game ------ Seed SpliceImpactChainsword Manual? 0 Play Time 00:54:54 Cumulative 29.0 hours Start 2025.07.17 @ 21:49:32 End 2025.07.18 @ 21:55:31 Sessions 3 Manual Loads 0 Difficulty Rogue Special Mode None Game No. 30 Rogue 30 Adventurer 0 Explorer 0 Win Type - Total 0 Types 0/0/0/0/0/0/0/0/0/0 Lore% 21 Gallery% 17 Achievement% 19 Wizard Run 0 Options --------- Layout 0 ASCII 0 Keyboard 1 Movement Numpad Keybinds 0 Fullscreen 1 Font 18/SmallcapsGlow Map View 76x50 Zoom Use 0% Tactical HUD 1 Map Filters NONE Filters NONE Steam 1 RUN: d54ad27e-d141-4c50-adc3-37c0a275e52c